fUSD/lending_fUSD_20260410
["ID","MTS","AMOUNT","RATE_DAILY","PERIOD"]
[420229626,1775824232802,-509.0,0.000131,2]
[420229627,1775824232812,-165.0,0.00013699,2]
[420229628,1775824232821,-1032.0,0.00013747,2]
[420229629,1775824232831,-365.0,0.00013801,2]
[420229630,1775824232841,-150.0,0.00014,2]
[420229631,1775824232852,-18615.44,0.00014001,2]
[420229632,1775824232862,-2351.0,0.00014013,2]
[420229633,1775824232871,-449.83802742,0.00014098,2]
[420229634,1775824232881,-500.0,0.00014198,2]
[420229635,1775824232891,-5652.18,0.00014297,2]
[420229636,1775824232901,-1000.0,0.00014297,2]
[420229637,1775824232912,-174.7074,0.000143,2]
[420229638,1775824232922,-198.18148552,0.00014355,2]
[420229639,1775824232933,-172.3,0.00014381,2]
[420229640,1775824232944,-163.58,0.00014384,2]
[420229641,1775824232954,-10082.71,0.00014404,2]
[420229642,1775824232964,-200.0,0.00014409,2]
[420229643,1775824232976,-250.0,0.00014442,2]
[420229645,1775824232985,-25971.03009529,0.00014504,2]
[420229648,1775824233001,-4028.95990471,0.00014504,2]
[420229649,1775824233011,-3233.92619776,0.00014509,2]
[420229650,1775824233021,-16517.25153696,0.00014554,2]
[420229651,1775824233030,-169.04,0.00014566,7]
[420229652,1775824233046,-216.0,0.00014673,2]
[420229653,1775824233057,-285.0,0.0001469,3]
[420229654,1775824233067,-161.0,0.0001469,3]
[420229655,1775824233081,-166.66,0.00014731,2]
[420229656,1775824233095,-160.0,0.00015014,2]
[420229657,1775824233106,-155.83,0.00015075,2]
[420229658,1775824233118,-400.0,0.000151,5]
[420229659,1775824233137,-900.0,0.000152,5]
[420229660,1775824233148,-500.0,0.00015205,2]
[420229661,1775824233165,-500.0,0.00015205,2]
[420229662,1775824233181,-500.0,0.00015205,2]
[420229663,1775824233192,-500.0,0.00015205,2]
[420229664,1775824233213,-500.0,0.00015205,2]
[420229665,1775824233227,-500.0,0.00015205,2]
[420229666,1775824233237,-500.0,0.00015205,2]
[420229667,1775824233253,-500.0,0.00015205,2]
[420229668,1775824233268,-500.0,0.00015205,2]
[420229669,1775824233279,-150.0,0.00015205,2]
[420229670,1775824233295,-150.0,0.00015205,2]
[420229671,1775824233313,-166.66,0.00015217,2]
[420229672,1775824233327,-1196.591,0.00015264,2]
[420229673,1775824233338,-165.205,0.00015264,2]
[420229674,1775824233351,-8105.36935054,0.0001528,2]
[420229675,1775824233362,-1400.0,0.000153,5]
[420229676,1775824233375,-271.07492801,0.0001532,2]
[420229677,1775824233386,-280.04748681,0.0001532,2]
[420229678,1775824233399,-1800.0,0.000154,5]
[420229679,1775824233409,-3292.0,0.00015415,2]
[420229680,1775824233422,-470.0,0.00015479,2]
[420229681,1775824233435,-509.0,0.00015489,4]
[420229682,1775824233444,-203.4845,0.000155,2]
[420229683,1775824233454,-2300.0,0.000155,5]
[420229684,1775824233468,-1527.03551853,0.00015503,2]
[420229685,1775824233483,-702.72152511,0.00015503,2]
[420229686,1775824233496,-531.26887674,0.00015503,2]
[420229687,1775824233509,-725.81388264,0.00015503,2]
[420229688,1775824233519,-1264.0,0.00015596,2]
[420229689,1775824233531,-926.0,0.00015596,2]
[420229690,1775824233541,-1218.0,0.00015596,2]
[420229691,1775824233553,-622.0,0.00015596,2]
[420229692,1775824233563,-2471.0,0.00015596,2]
[420229693,1775824233575,-400.0,0.000156,5]
[420229694,1775824233587,-160.0,0.0001568,7]
[420229695,1775824233601,-571.853102,0.0001568,7]
[420229696,1775824233611,-983.706205,0.0001568,7]
[420229697,1775824233621,-160.0,0.0001568,7]
[420229698,1775824233638,-160.360806,0.0001568,2]
[420229699,1775824233648,-179.252807,0.0001568,7]
[420229700,1775824233658,-198.505614,0.0001568,7]
[420229701,1775824233673,-313.0,0.000157,2]
[420229702,1775824233689,-400.0,0.000157,5]
[420229703,1775824233706,-928.0,0.000157,2]
[420229704,1775824233726,-166.66,0.00015703,2]
[420229705,1775824233735,-450.0,0.00015722,2]
[420229706,1775824233756,-496.0,0.00015744,2]
[420229707,1775824233776,-2270.96118387,0.00015799,2]
[420229708,1775824233795,-4367.2368,0.000158,2]
[420229709,1775824233809,-400.0,0.000158,5]
[420229710,1775824233820,-496.0,0.00015869,2]
[420229711,1775824233839,-172.734523,0.00015876,7]
[420229712,1775824233853,-443.427736,0.00015876,7]
[420229713,1775824233865,-2000.0,0.0001589,2]
[420229714,1775824233887,-500.0,0.00015899,2]
[420229715,1775824233904,-500.0,0.00015899,2]
[420229716,1775824233913,-500.0,0.00015899,2]
[420229717,1775824233932,-500.0,0.00015899,2]
[420229718,1775824233950,-601.9934002,0.00015899,2]
[420229719,1775824233963,-500.0,0.00015899,2]
[420229720,1775824233977,-500.0,0.00015899,2]
[420229721,1775824233996,-500.0,0.00015899,2]
[420229722,1775824234007,-500.0,0.00015899,2]
[420229723,1775824234018,-500.0,0.00015899,2]
[420229724,1775824234034,-500.0,0.00015899,2]
[420229725,1775824234053,-500.0,0.00015899,2]
[420229726,1775824234063,-500.0,0.00015899,2]
[420229727,1775824234079,-500.0,0.00015899,2]
[420229728,1775824234097,-500.0,0.00015899,2]
[420229729,1775824234109,-500.0,0.00015899,2]
[420229730,1775824234121,-500.0,0.00015899,2]
[420229731,1775824234142,-500.0,0.00015899,2]
[420229732,1775824234152,-500.0,0.00015899,2]
[420229733,1775824234163,-500.0,0.00015899,2]
[420229734,1775824234185,-500.0,0.00015899,2]
[420229735,1775824234195,-500.0,0.00015899,2]
[420229736,1775824234205,-495.79655769,0.00015899,2]
[420229737,1775824234216,-500.0,0.00015899,2]
[420229738,1775824234231,-500.0,0.00015899,2]
[420229739,1775824234240,-192.94956598,0.00015899,2]
[420229740,1775824234250,-500.0,0.00015899,2]
[420229741,1775824234262,-500.0,0.00015899,2]
[420229742,1775824234276,-500.0,0.00015899,2]
[420229743,1775824234286,-500.0,0.00015899,2]
[420229744,1775824234300,-500.0,0.00015899,2]
[420229745,1775824234309,-600.57969789,0.00015899,2]
[420229746,1775824234323,-35510.29204942,0.000159,2]
[420229749,1775824238905,-2270.96118387,0.0001581,2]
[420229750,1775824238916,-16386.19132944,0.000159,2]
[420229751,1775824241513,-2270.96118387,0.00015821,2]
[420229752,1775824241549,-1422.90785683,0.000159,2]
[420229753,1775824241595,-8816.29652057,0.000159,2]
[420229754,1775824241624,-1133.79344374,0.000159,2]
[420229755,1775824241639,-1473.3389,0.000159,2]
[420229756,1775824241657,-400.0,0.000159,5]
[420229757,1775824241671,-2227.6357557,0.000159,2]
[420229758,1775824241683,-369.99709422,0.000159,2]
[420229759,1775824241709,-168.0,0.00015909,2]
[420229760,1775824241722,-160.0,0.00015957,7]
[420229761,1775824241744,-216.565357,0.00015957,7]
[420229762,1775824241753,-273.130714,0.00015957,7]
[420229763,1775824241766,-426.18,0.00015958,2]
[420229764,1775824241790,-500.0,0.00015973,2]
[420229765,1775824241803,-164.4930349,0.00015973,2]
[420229766,1775824241812,-266.61133454,0.00015998,2]
[420229767,1775824241840,-1167.47316063,0.00015999,2]
[420229768,1775824241855,-1872.90223827,0.00015999,2]
[420229769,1775824241875,-5324.1647985,0.00015999,2]
[420229771,1775824241886,-1746.71682785,0.00015999,2]
[420229772,1775824241901,-1305.62252655,0.00015999,2]
[420229773,1775824241919,-150.0,0.00015999,2]
[420229774,1775824241929,-184.88261402,0.00015999,2]
[420229775,1775824241942,-500.0,0.00015999,2]
[420229776,1775824241958,-541.88111831,0.00015999,2]
[420229777,1775824241971,-6395.16240264,0.00016,2]
[420229778,1775824241985,-2783.91288589,0.00016,2]
[420229783,1775824243595,-2895.00807818,0.00013701,2]
[420229784,1775824243612,-39848.39372182,0.00013701,2]
[420229785,1775824243631,-1047.0,0.00015817,2]
[420229786,1775824243644,-13245.2589801,0.00016,2]
[420229787,1775824243679,-25628.54709575,0.00016,2]
[420229792,1775824246393,-151.0,0.00015436,2]
[420229793,1775824246405,-1605.81425333,0.00016,2]
[420229794,1775824246829,-2270.96118387,0.00015833,2]
[420229795,1775824246858,-8441.97303241,0.00016,2]
[420229796,1775824246913,-1345.10033048,0.00016,2]
[420229826,1775824540100,-250.0,0.00013,2]
[420229828,1775824938265,222.44483637,7.262e-05,2]
[420229829,1775824938306,277.86516363,7.262e-05,2]
[420229830,1775824938370,303.35554843,7.645e-05,2]
[420229831,1775824938411,196.95445157,7.645e-05,2]
[420229832,1775824938514,384.26626049,8.027e-05,2]
[420229833,1775824938554,116.04373951,8.027e-05,2]
[420229834,1775824938607,465.17697255,8.409e-05,2]
[420229835,1775824938650,35.13302745,8.409e-05,2]
[420229836,1775824938701,500.31,8.791e-05,2]
[420229837,1775824938778,45.77768461,9.174e-05,2]
[420229838,1775824938844,454.53231539,9.174e-05,2]
[420229839,1775824938920,126.68839667,9.556e-05,2]
[420229840,1775824938988,247.85171947,9.556e-05,2]
[420229841,1775825069533,-125.76988386,9.556e-05,2]
[420229842,1775825069576,-874.23011614,9.651e-05,2]
[420229843,1775825071327,-1000.0,9.651e-05,2]
[420229844,1775825071398,-1000.0,9.651e-05,2]
[420229845,1775825071730,-1000.0,9.651e-05,2]
[420229846,1775825073429,-1000.0,9.651e-05,2]
[420229847,1775825073535,-125.76988386,9.651e-05,2]
[420229848,1775825073561,-250.0,9.747e-05,2]
[420229849,1775825073605,-500.31,9.938e-05,2]
[420229850,1775825073637,-123.92011614,0.00010014,2]
[420229851,1775825073879,-1000.0,0.00010014,2]
[420229852,1775825074092,-1000.0,0.00010014,2]
[420229853,1775825074226,-1000.0,0.00010014,2]
[420229854,1775825074304,-1000.0,0.00010014,2]
[420229855,1775825076231,-552.8570587,0.00010014,2]
[420229856,1775825076286,-447.1429413,0.0001032,2]
[420229857,1775825076660,-53.1670587,0.0001032,2]
[420229858,1775825076692,-250.0,0.00010511,2]
[420229859,1775825076715,-193.0,0.00010511,2]
[420229860,1775825076753,-503.8329413,0.00010511,2]
[420229861,1775825076974,-1000.0,0.00010511,2]
[420229862,1775825077462,-1000.0,0.00010511,2]
[420229863,1775825077787,-1000.0,0.00010511,2]
[420229864,1775825078337,-1000.0,0.00010511,2]
[420229865,1775825078428,-496.1670587,0.00010511,2]
[420229866,1775825078465,-500.31,0.00010702,2]
[420229867,1775825078493,-3.5229413,0.00011085,2]
[420229868,1775825078832,-496.7870587,0.00011085,2]
[420229869,1775825078870,-150.0,0.000114,2]
[420229870,1775825078906,-353.2129413,0.00011467,2]
[420229871,1775825079202,-147.0970587,0.00011467,2]
[420229872,1775825079228,-500.31,0.00011849,2]
[420229873,1775825079260,-352.5929413,0.00012231,2]
[420229874,1775825079607,-147.7170587,0.00012231,2]
[420229875,1775825338881,-1000.0,0.000105,5]
[420229876,1775825340051,-1000.0,0.000105,5]
[420229877,1775825341444,-1000.0,0.000105,5]
[420229878,1775825342500,-607.0,0.000105,5]
[420229879,1775825342574,-155.34,0.00011269,2]
[420229880,1775825342624,-237.66,0.00012332,2]
[420229881,1775825343723,-89.29892163,0.00012332,2]
[420229883,1775825433474,-500.31,0.00012613,2]
[420229884,1775825433531,-43.834535,0.00012699,2]
[420229885,1775825433591,-106.165465,0.00012699,2]
[420229886,1775825433648,-1200.0,0.00012699,2]
[420229888,1775825433661,-2311.95425623,0.000127,2]
[420229889,1775825433716,-19830.00000004,0.000127,2]
[420229890,1775825433746,-30782.04784373,0.000127,2]
[420229892,1775825433755,-22055.93,0.00012893,2]
[420229893,1775825433774,-500.0,0.00012976,2]
[420229894,1775825433789,-500.31,0.00012996,2]
[420229895,1775825433798,-216.25,0.00013057,2]
[420229896,1775825433817,-151.0,0.00013073,2]
[420229897,1775825433835,-509.0,0.000131,2]
[420229898,1775825433844,-505.0,0.000131,2]
[420229899,1775825433868,-505.0,0.000131,2]
[420229900,1775825433882,-505.0,0.000131,2]
[420229901,1775825433897,-505.0,0.000131,2]
[420229902,1775825433914,-190.69,0.00013196,2]
[420229903,1775825433929,-1781.98,0.000132,2]
[420229904,1775825433945,-445.49,0.000132,2]
[420229905,1775825433964,-445.49,0.000132,2]
[420229906,1775825433978,-445.49,0.000132,2]
[420229907,1775825434001,-445.49,0.000132,2]
[420229908,1775825434020,-150.0,0.000133,2]
[420229909,1775825434039,-1005.0322,0.000133,2]
[420229910,1775825434048,-8332.6287012,0.00013335,2]
[420229911,1775825434073,-10001.58303665,0.00013335,2]
[420229912,1775825434089,-8127.78926215,0.00013335,2]
[420229913,1775825434101,-500.31,0.00013378,2]
[420229914,1775825434113,-166.66,0.00013699,2]
[420229915,1775825434130,-500.31,0.0001376,2]
[420229916,1775825434139,-255.0,0.00013804,2]
[420229917,1775825434149,-500.0,0.00013875,2]
[420229918,1775825434161,-500.0,0.00013875,2]
[420229919,1775825434173,-500.0,0.00013875,2]
[420229920,1775825434182,-500.0,0.00013875,2]
[420229921,1775825434198,-2500.0,0.00013875,2]
[420229922,1775825434208,-300.0,0.00013875,2]
[420229923,1775825434225,-300.0,0.00013875,2]
[420229924,1775825434245,-300.0,0.00013875,2]
[420229925,1775825434257,-300.0,0.00013875,2]
[420229926,1775825434277,-300.0,0.00013875,2]
[420229927,1775825434350,-166.66,0.00013901,2]
[420229928,1775825434497,-502.5161,0.00013965,2]
[420229929,1775825434555,-1680.0,0.00013969,2]
[420229930,1775825434570,-752.08842445,0.00014011,2]
[420229931,1775825434599,-558.74,0.00014011,2]
[420229932,1775825434623,-1115.27157555,0.00014011,2]
[420229933,1775825434655,-1761.79,0.00014019,2]
[420229934,1775825434706,-3240.0,0.00014026,2]
[420229935,1775825434803,-166.66,0.00014104,2]
[420229936,1775825434828,-500.31,0.00014142,2]
[420229937,1775825434844,-409.0,0.00014219,2]
[420229938,1775825434860,-427.0239,0.00014301,2]
[420229939,1775825434878,-166.66,0.00014306,2]
[420229940,1775825434895,-500.0,0.00014339,2]
[420229941,1775825434907,-500.0,0.00014339,2]
[420229942,1775825434924,-500.0,0.00014339,2]
[420229943,1775825434938,-500.0,0.00014339,2]
[420229944,1775825434952,-500.0,0.00014339,2]
[420229945,1775825434963,-500.0,0.00014339,2]
[420229946,1775825434973,-500.0,0.00014339,2]
[420229947,1775825434994,-500.0,0.00014339,2]
[420229948,1775825435003,-193.19075099,0.00014339,2]
[420229949,1775825435017,-313.53606452,0.00014339,2]
[420229950,1775825435036,-182.33872237,0.00014339,2]
[420229951,1775825435046,-343.45431694,0.00014339,2]
[420229952,1775825435063,-500.0,0.00014339,2]
[420229953,1775825435072,-500.0,0.00014339,2]
[420229954,1775825435091,-500.0,0.00014339,2]
[420229955,1775825435104,-500.0,0.00014339,2]
[420229956,1775825435113,-500.0,0.00014339,2]
[420229957,1775825435126,-500.0,0.00014339,2]
[420229958,1775825435146,-500.0,0.00014339,2]
[420229959,1775825435156,-500.0,0.00014339,2]
[420229960,1775825435173,-500.0,0.00014339,2]
[420229961,1775825435195,-500.0,0.00014339,2]
[420229962,1775825435207,-500.0,0.00014339,2]
[420229963,1775825435221,-500.0,0.00014339,2]
[420229964,1775825435250,-500.0,0.00014339,2]
[420229965,1775825435287,-500.0,0.00014339,2]
[420229966,1775825435305,-500.0,0.00014339,2]
[420229967,1775825435335,-200.0,0.00014339,2]
[420229968,1775825435349,-500.0,0.00014339,2]
[420229969,1775825435381,-34417.22062388,0.0001434,2]
[420229971,1775825437800,-5887.1,0.0001434,2]
[420229972,1775825437847,-98370.20039502,0.0001434,2]
[420229973,1775825437858,-16918.0253215,0.0001434,2]
[420229974,1775825437867,-151.9670282,0.0001434,2]
[420229975,1775825437877,-174.5976,0.000145,2]
[420229976,1775825437886,-166.66,0.00014509,2]
[420229977,1775825437896,-500.31,0.00014525,2]
[420229979,1775825438344,-1600.0,0.00014556,2]
[420229980,1775825438381,-872.78,0.00014597,2]
[420229981,1775825438399,-8820.667,0.00014605,2]
[420229982,1775825438414,-2426.1,0.00014711,2]
[420229983,1775825438436,-166.66,0.00014712,2]
[420229984,1775825438453,-549.91981729,0.00014734,2]
[420229985,1775825438470,-191.43259911,0.00014796,2]
[420229986,1775825438489,-500.0,0.00014796,2]
[420229987,1775825438512,-174.61919141,0.00014796,2]
[420229988,1775825438554,-601.3376128,0.00014834,2]
[420229989,1775825438641,-200.0,0.00014834,2]
[420229990,1775825438701,-1191.11104075,0.00014834,2]
[420229991,1775825438723,-743.50770149,0.00014834,2]
[420229992,1775825438751,-500.0,0.00014851,2]
[420229993,1775825438772,-549.91981727,0.00014901,2]
[420229994,1775825438799,-300.0,0.00015,2]
[420229995,1775825438818,-549.91981727,0.00015067,2]
[420229996,1775825438835,-161.12,0.00015068,2]
[420229997,1775825438855,-300.0,0.000151,5]
[420229998,1775825438873,-700.0,0.000152,5]
[420229999,1775825438885,-549.91981727,0.00015234,2]
[420230000,1775825438899,-150.0,0.0001525,2]
[420230001,1775825438920,-500.0,0.0001525,2]
[420230002,1775825438930,-150.0,0.0001525,2]
[420230003,1775825438941,-150.0,0.0001525,2]
[420230004,1775825438969,-500.0,0.0001525,2]
[420230005,1775825438978,-150.0,0.0001525,2]
[420230006,1775825438998,-500.0,0.0001525,2]
[420230007,1775825439017,-150.0,0.0001525,2]
[420230008,1775825439029,-334.0,0.0001525,2]
[420230009,1775825439056,-199.50645991,0.0001525,2]
[420230010,1775825439066,-150.0,0.0001525,2]
[420230011,1775825439086,-224.88894205,0.0001525,2]
[420230012,1775825439101,-150.0,0.0001525,2]
[420230013,1775825439111,-500.0,0.0001525,2]
[420230014,1775825439123,-500.0,0.0001525,2]
[420230015,1775825439142,-500.0,0.0001525,2]
[420230016,1775825439153,-500.0,0.0001525,2]
[420230017,1775825439169,-500.0,0.0001525,2]
[420230018,1775825439184,-500.0,0.0001525,2]
[420230019,1775825439196,-500.0,0.0001525,2]
[420230020,1775825439217,-500.0,0.0001525,2]
[420230021,1775825439237,-594.89077338,0.0001525,2]
[420230022,1775825439257,-167.5053,0.00015295,2]
[420230023,1775825439273,-1100.0,0.000153,5]
[420230024,1775825439323,-181.08010149,0.00015344,2]
[420230025,1775825439342,-162.0,0.0001536,2]
[420230026,1775825439363,-2351.0,0.00015366,2]
[420230027,1775825439384,-200.0,0.00015382,2]
[420230028,1775825439409,-1235.18214925,0.00015382,2]
[420230029,1775825439425,-1500.0,0.000154,5]
[420230030,1775825439446,-549.91981727,0.000154,2]
[420230031,1775825439465,-2426.1,0.00015412,2]
[420230032,1775825439491,-9144.6592259,0.00015454,2]
[420230033,1775825439505,-3075.433951,0.00015458,2]
[420230034,1775825439521,-11124.0757817,0.00015458,2]
[420230035,1775825439540,-3503.57867453,0.00015489,2]
[420230036,1775825439554,-1042.266,0.000155,2]
[420230037,1775825439563,-165.2052637,0.000155,2]
[420230038,1775825439575,-1900.0,0.000155,5]
[420230039,1775825439589,-3503.57867445,0.00015535,2]
[420230040,1775825439603,-549.91981727,0.00015567,2]
[420230041,1775825439612,-373.0,0.0001558,2]
[420230042,1775825439627,-3503.57867445,0.0001558,2]
[420230043,1775825439641,-180.442217,0.00015582,7]
[420230044,1775825439650,-300.0,0.000156,5]
[420230045,1775825439660,-1585.0,0.00015626,2]
[420230046,1775825439671,-3503.57867445,0.00015626,2]
[420230047,1775825439684,-3503.57867445,0.00015672,2]
[420230048,1775825439693,-509.0,0.00015673,4]
[420230049,1775825439704,-370.448331,0.0001568,7]
[420230050,1775825439715,-183.507871,0.0001568,7]
[420230051,1775825439725,-443.754228,0.0001568,2]
[420230052,1775825439735,-232.601295,0.0001568,7]
[420230053,1775825439746,-160.0,0.0001568,7]
[420230054,1775825439756,-350.560845,0.0001568,7]
[420230055,1775825439769,-541.12169,0.0001568,7]
[420230056,1775825439779,-300.0,0.000157,5]
[420230057,1775825439792,-1000.0,0.000157,2]
[420230058,1775825439808,-2500.0,0.000157,2]
[420230060,1775825439819,-3503.57867445,0.00015717,2]
[420230062,1775825439834,-549.91981727,0.00015733,2]
[420230064,1775825439869,-3503.57867445,0.00015763,2]
[420230065,1775825439892,-373.0,0.00015764,2]
[420230066,1775825439917,-250.0,0.00015777,2]
[420230067,1775825439961,-160.0,0.00015787,7]
[420230068,1775825439989,-190.432695,0.00015787,7]
[420230069,1775825440010,-220.86539,0.00015787,7]
[420230070,1775825440027,-302.0,0.00015798,2]
[420230071,1775825440042,-452.4266,0.000158,2]
[420230072,1775825440056,-35692.3751,0.000158,2]
[420230073,1775825440065,-203.2288,0.000158,2]
[420230074,1775825440080,-300.0,0.000158,5]
[420230075,1775825440089,-3503.57867445,0.00015809,2]
[420230076,1775825440104,-1413.79538723,0.00015811,2]
[420230077,1775825440114,-622.0,0.00015827,2]
[420230078,1775825440128,-1347.0,0.00015827,2]
[420230079,1775825440137,-3773.0,0.00015827,2]
[420230080,1775825440150,-6023.0,0.00015827,2]
[420230081,1775825440163,-3503.57867445,0.00015854,2]
[420230082,1775825440173,-1413.79538723,0.00015856,2]
[420230083,1775825440183,-373.0,0.0001586,2]
[420230084,1775825440198,-174.6191914,0.00015892,2]
[420230085,1775825440212,-500.0,0.00015899,2]
[420230086,1775825440222,-500.0,0.00015899,2]
[420230087,1775825440242,-502.02408575,0.00015899,2]
[420230088,1775825440253,-500.0,0.00015899,2]
[420230089,1775825440262,-583.84480291,0.00015899,2]
[420230090,1775825440272,-500.0,0.00015899,2]
[420230091,1775825440294,-56867.7686,0.000159,2]
[420230092,1775825440304,-1413.79538723,0.000159,2]
[420230093,1775825440312,-5000.0,0.000159,2]
[420230094,1775825440323,-313.0,0.000159,2]
[420230095,1775825440341,-300.0,0.000159,5]
[420230096,1775825440352,-549.91981727,0.000159,2]
[420230097,1775825440367,-270.7801228,0.000159,2]
[420230098,1775825440384,-3503.57867445,0.000159,2]
[420230099,1775825440401,-181.17632709,0.0001593,2]
[420230100,1775825440413,-250.0,0.00015945,2]
[420230101,1775825440439,-213.09,0.00015958,2]
[420230102,1775825440453,-500.0,0.00015973,2]
[420230103,1775825440479,-500.0,0.00015973,2]
[420230104,1775825440494,-500.0,0.00015973,2]
[420230105,1775825440505,-500.0,0.00015973,2]
[420230106,1775825440527,-500.0,0.00015973,2]
[420230107,1775825440547,-194.18662977,0.0001599,2]
[420230108,1775825440570,-155.0,0.00015999,2]
[420230109,1775825440591,-229.91,0.00015999,2]
[420230110,1775825440617,-500.0,0.00015999,2]
[420230111,1775825440634,-500.0,0.00015999,2]
[420230112,1775825440656,-500.0,0.00015999,2]
[420230113,1775825440667,-393.16,0.00015999,2]
[420230114,1775825440683,-500.0,0.00015999,2]
[420230115,1775825440702,-500.0,0.00015999,2]
[420230116,1775825440712,-500.0,0.00015999,2]
[420230117,1775825440724,-500.0,0.00015999,2]
[420230118,1775825440749,-500.0,0.00015999,2]
[420230119,1775825440766,-500.0,0.00015999,2]
[420230120,1775825440782,-500.0,0.00015999,2]
[420230121,1775825440799,-513.05326966,0.00015999,2]
[420230122,1775825440819,-500.0,0.00015999,2]
[420230123,1775825440844,-500.0,0.00015999,2]
[420230124,1775825440862,-500.0,0.00015999,2]
[420230125,1775825440884,-150.0,0.00015999,2]
[420230126,1775825440905,-500.0,0.00015999,2]
[420230127,1775825440925,-310.80054366,0.00015999,2]
[420230128,1775825440940,-163.56179334,0.00015999,2]
[420230129,1775825440950,-572.72436065,0.00015999,2]
[420230130,1775825440964,-261.53109828,0.00015999,2]
[420230131,1775825440987,-178.19802918,0.00015999,2]
[420230132,1775825440998,-586196.89419708,0.00016,2]
[420230133,1775825441021,-2758.9,0.00016,2]
[420230134,1775825441035,-147204.39139516,0.00016,2]
[420230135,1775825441834,-750.97674804,0.00016,2]
[420230136,1775825441849,-540.01220046,0.00016,2]
[420230137,1775825441869,-1086.4395005,0.00016,2]
[420230138,1775825441884,-35516.31150277,0.00016,2]
[420230139,1775825441917,-6051.91864763,0.00016,2]
[420230152,1775825443264,-2156.32075463,0.00016,2]
[420230153,1775825443353,-415.0,0.00015827,2]
[420230154,1775825443364,-2326.63328517,0.00016,2]
[420230156,1775825445659,-160.0,0.00015582,2]
[420230157,1775825445688,-118.26250001,0.00016,2]
[420230158,1775825445753,-21275.52357828,0.00016,2]
[420230159,1775825445776,-1957.6389665,0.00016,2]
[420230160,1775825445985,-2073.34,0.00016,2]
[420230161,1775825445997,-2547.79039457,0.00016,2]
[420230162,1775825446008,-754.79685813,0.00016,2]
[420230166,1775825448405,-900.518547,0.00015582,2]
[420230167,1775825448425,-364.45936095,0.00015582,2]
[420230168,1775825448512,-1276.57773405,0.00015582,2]
[420230169,1775825448536,-2000.0,0.000159,2]
[420230170,1775825448552,-8194.39796142,0.00016,2]
[420230171,1775825448579,-72331.41721016,0.00016,2]
[420230185,1775826632332,-1389.255,0.000125,2]
[420230187,1775826632370,-2711.1039,0.000125,2]
[420230189,1775826632382,-90012.33622758,0.000125,2]
[420230191,1775826632418,-11107.7774312,0.000125,2]
[420230192,1775826632435,-29135.07258036,0.000125,2]
[420230193,1775826632457,-29825.08346086,0.000125,2]
[420230194,1775826632469,-151.0,0.00012597,2]
[420230195,1775826632480,-150.0,0.00012599,2]
[420230196,1775826632500,-7044.37547518,0.000126,2]
[420230197,1775826632514,-1254.41808677,0.000126,2]
[420230204,1775826638116,-46865.1872542,0.000126,2]
[420230205,1775826638189,-31780.78858851,0.000126,2]
[420230206,1775826638323,-60747.15029534,0.000126,2]
[420230207,1775826638341,-7281.34693928,0.00012632,2]
[420230208,1775826638352,-500.0,0.00012773,2]
[420230209,1775826638364,-500.0,0.00012773,2]
[420230210,1775826638376,-500.0,0.00012773,2]
[420230211,1775826638394,-562.81492935,0.00012773,2]
[420230212,1775826638406,-151.0,0.00012785,2]
[420230213,1775826638421,-151.0,0.00012785,2]
[420230215,1775826638439,-151.0,0.00012785,2]
[420230217,1775826638450,-151.0,0.00012785,2]